[Event "Early-Titled-Tuesday-Blitz-January-16-2024"]
[Site "Chess.com"]
[Date "2024.01.16"]
[Round "3"]
[White "yaguigor"]
[Black "NovakRatko"]
[Result "1-0"]
[WhiteElo "2651"]
[BlackElo "2315"]
[TimeControl "180+1"]
[EndTime "8:26:27 PST"]
[Termination "yaguigor won on time"]

1. e4 {[%clk 0:03:00.9]} 1... h6 {[%clk 0:00:18.8]} 2. d4 {[%clk 0:02:54.7]}
2... d5 {[%clk 0:00:17.9]} 3. exd5 {[%clk 0:02:53.1]} 3... Qd7 {[%clk
0:00:17.9]} 4. c4 {[%clk 0:02:51.7]} 4... Nf6 {[%clk 0:00:18.3]} 5. Nc3 {[%clk
0:02:51.2]} 5... c6 {[%clk 0:00:18.7]} 6. dxc6 {[%clk 0:02:50.2]} 6... Nxc6
{[%clk 0:00:18.8]} 7. d5 {[%clk 0:02:46.1]} 7... Ne5 {[%clk 0:00:18.3]} 8. Be2
{[%clk 0:02:42.2]} 8... e6 {[%clk 0:00:17.5]} 9. Nf3 {[%clk 0:02:35.7]} 9... Ng6
{[%clk 0:00:13]} 10. c5 {[%clk 0:02:22.2]} 10... Bxc5 {[%clk 0:00:12]} 11. Bb5
{[%clk 0:02:21.3]} 11... Ng4 {[%clk 0:00:06.7]} 12. O-O {[%clk 0:02:17.6]} 12...
O-O {[%clk 0:00:03.2]} 13. Bxd7 {[%clk 0:02:16.2]} 13... Bxd7 {[%clk 0:00:04.1]}
14. h3 {[%clk 0:02:14.3]} 14... Nxf2 {[%clk 0:00:03.8]} 15. Rxf2 {[%clk
0:02:13.8]} 15... Rfd8 {[%clk 0:00:03.3]} 16. Nd4 {[%clk 0:02:09.3]} 1-0

[Event "Early-Titled-Tuesday-Blitz-January-16-2024"]
[Site "Chess.com"]
[Date "2024.01.16"]
[Round "3"]
[White "vanyakuba"]
[Black "nickmatta"]
[Result "0-1"]
[WhiteElo "2302"]
[BlackElo "2580"]
[TimeControl "180+1"]
[EndTime "8:26:40 PST"]
[Termination "nickmatta won on time"]

1. e4 {[%clk 0:02:57.8]} 1... c5 {[%clk 0:03:00]} 2. c3 {[%clk 0:02:44.6]} 2...
Nf6 {[%clk 0:02:55.7]} 3. e5 {[%clk 0:02:44.6]} 3... Nd5 {[%clk 0:02:56.2]} 4.
d4 {[%clk 0:02:44.1]} 4... cxd4 {[%clk 0:02:57.1]} 5. cxd4 {[%clk 0:02:44.9]}
5... Nc6 {[%clk 0:02:57.1]} 6. Nc3 {[%clk 0:02:43.3]} 6... Nxc3 {[%clk
0:02:53.6]} 7. bxc3 {[%clk 0:02:44.2]} 7... d6 {[%clk 0:02:48.4]} 8. f4 {[%clk
0:02:44.6]} 8... Bf5 {[%clk 0:02:45.7]} 9. d5 {[%clk 0:02:14.7]} 9... Nb8 {[%clk
0:02:45.1]} 10. Nf3 {[%clk 0:01:31.9]} 10... g6 {[%clk 0:02:44.2]} 11. Bb5+
{[%clk 0:01:17]} 11... Bd7 {[%clk 0:02:43.6]} 12. Bc4 {[%clk 0:01:11.1]} 12...
Bg7 {[%clk 0:02:41.4]} 13. e6 {[%clk 0:01:07.4]} 13... fxe6 {[%clk 0:02:42.3]}
14. dxe6 {[%clk 0:01:07.4]} 14... Bc6 {[%clk 0:02:39.9]} 15. O-O {[%clk
0:01:00.7]} 15... Qb6+ {[%clk 0:02:36.5]} 16. Kh1 {[%clk 0:00:59.8]} 16... Bxc3
{[%clk 0:02:37.2]} 17. Bd2 {[%clk 0:00:48.3]} 17... Bxa1 {[%clk 0:02:36.8]} 18.
Qxa1 {[%clk 0:00:48]} 18... Rf8 {[%clk 0:02:36.3]} 19. Ng5 {[%clk 0:00:33.7]}
19... Qc5 {[%clk 0:02:25.3]} 20. Nxh7 {[%clk 0:00:10]} 20... Rg8 {[%clk
0:02:13.8]} 21. Nf6+ {[%clk 0:00:02.8]} 21... Kd8 {[%clk 0:02:11.1]} 22. Nxg8
{[%clk 0:00:02.7]} 22... Qxc4 {[%clk 0:02:11.8]} 0-1

[Event "Early-Titled-Tuesday-Blitz-January-16-2024"]
[Site "Chess.com"]
[Date "2024.01.16"]
[Round "3"]
[White "kaanadayhamle"]
[Black "SaqoChess_Twitch"]
[Result "1-0"]
[WhiteElo "2404"]
[BlackElo "2592"]
[TimeControl "180+1"]
[EndTime "8:26:46 PST"]
[Termination "kaanadayhamle won by checkmate"]

1. Nf3 {[%clk 0:03:00.9]} 1... d5 {[%clk 0:02:59.9]} 2. d4 {[%clk 0:02:59.8]}
2... e6 {[%clk 0:03:00.3]} 3. g3 {[%clk 0:02:59.7]} 3... Nf6 {[%clk 0:03:01]} 4.
Bg2 {[%clk 0:03:00.4]} 4... Be7 {[%clk 0:03:01.9]} 5. O-O {[%clk 0:03:00.9]}
5... O-O {[%clk 0:03:02.8]} 6. Bg5 {[%clk 0:03:01.2]} 6... h6 {[%clk 0:03:00.6]}
7. Bxf6 {[%clk 0:03:01.6]} 7... Bxf6 {[%clk 0:03:01.5]} 8. e3 {[%clk 0:03:00.5]}
8... b6 {[%clk 0:03:01.5]} 9. Nbd2 {[%clk 0:03:00.8]} 9... Bb7 {[%clk 0:03:02]}
10. c3 {[%clk 0:03:00.7]} 10... Nd7 {[%clk 0:03:02.3]} 11. Re1 {[%clk
0:03:00.7]} 11... c5 {[%clk 0:03:00.5]} 12. Qc2 {[%clk 0:03:01.4]} 12... Rc8
{[%clk 0:02:59.6]} 13. Rac1 {[%clk 0:03:00.9]} 13... Qe7 {[%clk 0:02:59.1]} 14.
Qb1 {[%clk 0:02:59.9]} 14... e5 {[%clk 0:02:59.4]} 15. dxe5 {[%clk 0:03:00.3]}
15... Nxe5 {[%clk 0:03:00.3]} 16. Nxe5 {[%clk 0:03:00.9]} 16... Bxe5 {[%clk
0:03:01]} 17. e4 {[%clk 0:02:59.9]} 17... d4 {[%clk 0:03:01.1]} 18. Nf3 {[%clk
0:02:58.7]} 18... dxc3 {[%clk 0:02:58]} 19. Nxe5 {[%clk 0:02:57.4]} 19... Qxe5
{[%clk 0:02:58.1]} 20. Rxc3 {[%clk 0:02:57.8]} 20... Rcd8 {[%clk 0:02:57.3]} 21.
Rd3 {[%clk 0:02:54.7]} 21... Rd4 {[%clk 0:02:54.8]} 22. Rxd4 {[%clk 0:02:50.1]}
22... Qxd4 {[%clk 0:02:55.1]} 23. Rd1 {[%clk 0:02:50.1]} 23... Qc4 {[%clk
0:02:53.4]} 24. b3 {[%clk 0:02:49.1]} 24... Qe6 {[%clk 0:02:53.5]} 25. Qd3
{[%clk 0:02:46.5]} 25... Re8 {[%clk 0:02:53.5]} 26. Qd7 {[%clk 0:02:17.9]} 26...
Bxe4 {[%clk 0:02:51.5]} 27. Bxe4 {[%clk 0:02:15.3]} 27... Qxe4 {[%clk
0:02:50.8]} 28. Qxa7 {[%clk 0:02:15.5]} 28... Qf3 {[%clk 0:02:42.2]} 29. Rf1
{[%clk 0:02:11.3]} 29... Qc6 {[%clk 0:02:42.2]} 30. Qa6 {[%clk 0:02:05.9]} 30...
Ra8 {[%clk 0:02:39.4]} 31. Qe2 {[%clk 0:02:05.7]} 31... b5 {[%clk 0:02:37.9]}
32. Rc1 {[%clk 0:02:05.3]} 32... Rc8 {[%clk 0:02:36.8]} 33. Qe3 {[%clk
0:02:02.8]} 33... c4 {[%clk 0:02:37]} 34. bxc4 {[%clk 0:02:03.1]} 34... bxc4
{[%clk 0:02:37.9]} 35. Qc3 {[%clk 0:02:03.1]} 35... Qa4 {[%clk 0:02:36.7]} 36.
a3 {[%clk 0:02:01.4]} 36... h5 {[%clk 0:02:35.3]} 37. h4 {[%clk 0:01:56.6]}
37... g6 {[%clk 0:02:34.2]} 38. Qb4 {[%clk 0:01:33.2]} 38... Qc6 {[%clk
0:02:25.3]} 39. Qc3 {[%clk 0:01:32.7]} 39... Kh7 {[%clk 0:02:21]} 40. Re1 {[%clk
0:01:25.6]} 40... Rd8 {[%clk 0:02:14.3]} 41. Rc1 {[%clk 0:01:22.9]} 41... Rd3
{[%clk 0:02:12.4]} 42. Qxd3 {[%clk 0:01:22.4]} 42... Qf6 {[%clk 0:02:03.8]} 43.
Qxc4 {[%clk 0:01:19.6]} 43... Qf3 {[%clk 0:02:03.5]} 44. Qc3 {[%clk 0:01:19.2]}
44... Qf5 {[%clk 0:02:03.3]} 45. a4 {[%clk 0:01:18.7]} 45... g5 {[%clk
0:02:03.1]} 46. Qc2 {[%clk 0:01:17.5]} 46... Qg6 {[%clk 0:02:00.2]} 47. Qxg6+
{[%clk 0:01:16.7]} 47... Kxg6 {[%clk 0:02:01.1]} 48. hxg5 {[%clk 0:01:17.4]}
48... Kf5 {[%clk 0:02:02]} 49. a5 {[%clk 0:01:18.1]} 49... Kg4 {[%clk
0:02:02.9]} 50. a6 {[%clk 0:01:18.5]} 50... f5 {[%clk 0:02:03.8]} 51. g6 {[%clk
0:01:17.4]} 51... f4 {[%clk 0:02:04.7]} 52. g7 {[%clk 0:01:18]} 52... f3 {[%clk
0:02:03.6]} 53. g8=Q+ {[%clk 0:01:18.1]} 53... Kh3 {[%clk 0:02:04.2]} 54. Qc8#
{[%clk 0:01:18.4]} 1-0

[Event "Early-Titled-Tuesday-Blitz-January-16-2024"]
[Site "Chess.com"]
[Date "2024.01.16"]
[Round "3"]
[White "vladgoncharov"]
[Black "dzilleruelo"]
[Result "1-0"]
[WhiteElo "2594"]
[BlackElo "2355"]
[TimeControl "180+1"]
[EndTime "8:26:48 PST"]
[Termination "vladgoncharov won by resignation"]

1. d4 {[%clk 0:03:00.9]} 1... Nf6 {[%clk 0:02:42.6]} 2. c4 {[%clk 0:03:00.2]}
2... g6 {[%clk 0:02:41.4]} 3. Nc3 {[%clk 0:02:59.7]} 3... d5 {[%clk 0:02:41.8]}
4. cxd5 {[%clk 0:02:58.8]} 4... Nxd5 {[%clk 0:02:42.7]} 5. e4 {[%clk 0:02:57.1]}
5... Nxc3 {[%clk 0:02:42.9]} 6. bxc3 {[%clk 0:02:57.4]} 6... Bg7 {[%clk
0:02:43.8]} 7. Bc4 {[%clk 0:02:57.2]} 7... c5 {[%clk 0:02:44]} 8. Ne2 {[%clk
0:02:57.4]} 8... O-O {[%clk 0:02:44.1]} 9. O-O {[%clk 0:02:56.7]} 9... Nc6
{[%clk 0:02:44.2]} 10. Be3 {[%clk 0:02:55.9]} 10... Bg4 {[%clk 0:02:38.5]} 11.
f3 {[%clk 0:02:55]} 11... Bd7 {[%clk 0:02:39.1]} 12. dxc5 {[%clk 0:02:48.7]}
12... Ne5 {[%clk 0:02:29.1]} 13. Bd5 {[%clk 0:02:44.8]} 13... Bb5 {[%clk
0:02:18.6]} 14. Rb1 {[%clk 0:02:38.3]} 14... Qa5 {[%clk 0:02:08.7]} 15. Bxb7
{[%clk 0:02:35.5]} 15... Rad8 {[%clk 0:02:06.2]} 16. Bd4 {[%clk 0:02:16]} 16...
Nxf3+ {[%clk 0:01:31.4]} 17. Rxf3 {[%clk 0:02:07.1]} 17... e5 {[%clk 0:01:31.9]}
18. Bd5 {[%clk 0:02:05.8]} 18... Bxe2 {[%clk 0:01:25.6]} 19. Qxe2 {[%clk
0:02:04.1]} 19... exd4 {[%clk 0:01:26.3]} 20. c4 {[%clk 0:01:51]} 20... Qxc5
{[%clk 0:01:24.5]} 21. Kh1 {[%clk 0:01:50.6]} 21... Bh6 {[%clk 0:01:05.5]} 22.
Rb7 {[%clk 0:01:45]} 22... Kh8 {[%clk 0:01:00.8]} 23. Rbxf7 {[%clk 0:01:40]}
23... Rxf7 {[%clk 0:01:00.6]} 24. Rxf7 {[%clk 0:01:40.6]} 24... Rf8 {[%clk
0:00:59.3]} 25. Qf3 {[%clk 0:01:39.2]} 25... Qb4 {[%clk 0:00:47.1]} 26. Qf6+
{[%clk 0:01:30]} 1-0

[Event "Early-Titled-Tuesday-Blitz-January-16-2024"]
[Site "Chess.com"]
[Date "2024.01.16"]
[Round "3"]
[White "TitarovVasiliYouTube"]
[Black "Konavets"]
[Result "0-1"]
[WhiteElo "2540"]
[BlackElo "3151"]
[TimeControl "180+1"]
[EndTime "8:26:56 PST"]
[Termination "Konavets won on time"]

1. e4 {[%clk 0:02:52]} 1... e5 {[%clk 0:02:58.9]} 2. Nf3 {[%clk 0:02:49.1]} 2...
Nc6 {[%clk 0:02:59.1]} 3. Bb5 {[%clk 0:02:48.5]} 3... Nd4 {[%clk 0:02:59]} 4.
Nxd4 {[%clk 0:02:46.9]} 4... exd4 {[%clk 0:02:59.9]} 5. O-O {[%clk 0:02:47.1]}
5... Bc5 {[%clk 0:03:00.3]} 6. c3 {[%clk 0:02:43.4]} 6... Qh4 {[%clk 0:02:59.3]}
7. d3 {[%clk 0:02:21.4]} 7... c6 {[%clk 0:02:58.6]} 8. Ba4 {[%clk 0:02:19.9]}
8... d6 {[%clk 0:02:58.5]} 9. cxd4 {[%clk 0:02:12.9]} 9... Bxd4 {[%clk
0:02:58.7]} 10. Nc3 {[%clk 0:02:13.6]} 10... Nf6 {[%clk 0:02:57.9]} 11. Qf3
{[%clk 0:01:40.6]} 11... Bg4 {[%clk 0:02:51.9]} 12. Qg3 {[%clk 0:01:36.8]} 12...
Qxg3 {[%clk 0:02:49.2]} 13. hxg3 {[%clk 0:01:37.7]} 13... Nd7 {[%clk 0:02:48.5]}
14. Bd1 {[%clk 0:01:29.2]} 14... h5 {[%clk 0:02:44.1]} 15. Be3 {[%clk
0:01:10.7]} 15... Bxe3 {[%clk 0:02:42.9]} 16. fxe3 {[%clk 0:01:11.6]} 16... Ne5
{[%clk 0:02:43.4]} 17. Bxg4 {[%clk 0:01:06.5]} 17... Nxg4 {[%clk 0:02:42.3]} 18.
Rae1 {[%clk 0:01:01.6]} 18... g6 {[%clk 0:02:39.1]} 19. d4 {[%clk 0:00:58.1]}
19... O-O {[%clk 0:02:39.1]} 20. Rf4 {[%clk 0:00:48.7]} 20... Kg7 {[%clk
0:02:39.1]} 21. Kf1 {[%clk 0:00:47.3]} 21... Rae8 {[%clk 0:02:35.5]} 22. Ke2
{[%clk 0:00:44]} 22... a5 {[%clk 0:02:35.1]} 23. Kd3 {[%clk 0:00:43.8]} 23...
Re7 {[%clk 0:02:35.6]} 24. a4 {[%clk 0:00:42.2]} 24... Nf6 {[%clk 0:02:34.8]}
25. Ref1 {[%clk 0:00:38.8]} 25... Nd7 {[%clk 0:02:31.6]} 26. g4 {[%clk
0:00:32.3]} 26... hxg4 {[%clk 0:02:32.5]} 27. Rxg4 {[%clk 0:00:33.2]} 27... Rh8
{[%clk 0:02:33]} 28. Rgf4 {[%clk 0:00:17.2]} 28... Rh2 {[%clk 0:02:32.2]} 29.
R1f2 {[%clk 0:00:16]} 29... Nf8 {[%clk 0:02:31.5]} 30. g4 {[%clk 0:00:14]} 30...
Rh1 {[%clk 0:02:30.4]} 31. Rf1 {[%clk 0:00:13.7]} 31... Rh4 {[%clk 0:02:30.3]}
32. g5 {[%clk 0:00:06.8]} 32... Rh5 {[%clk 0:02:30.7]} 33. Rg4 {[%clk
0:00:06.2]} 33... Ne6 {[%clk 0:02:31.4]} 34. Rfg1 {[%clk 0:00:04]} 34... Re8
{[%clk 0:02:31.9]} 35. Ne2 {[%clk 0:00:04.3]} 35... Rh3 {[%clk 0:02:32.1]} 36.
R1g3 {[%clk 0:00:02.6]} 36... Reh8 {[%clk 0:02:31.1]} 0-1

[Event "Early-Titled-Tuesday-Blitz-January-16-2024"]
[Site "Chess.com"]
[Date "2024.01.16"]
[Round "3"]
[White "AlexPapasimakopoulos"]
[Black "Alex_Terzi"]
[Result "1-0"]
[WhiteElo "2643"]
[BlackElo "2441"]
[TimeControl "180+1"]
[EndTime "8:26:59 PST"]
[Termination "AlexPapasimakopoulos won by checkmate"]

1. d4 {[%clk 0:03:00.9]} 1... d5 {[%clk 0:02:54.5]} 2. c4 {[%clk 0:03:00.7]}
2... e6 {[%clk 0:02:53.4]} 3. Nc3 {[%clk 0:03:00.7]} 3... Nf6 {[%clk 0:02:52.3]}
4. cxd5 {[%clk 0:03:00.8]} 4... exd5 {[%clk 0:02:51.9]} 5. Bg5 {[%clk
0:03:01.4]} 5... Nbd7 {[%clk 0:02:47.4]} 6. e3 {[%clk 0:03:01.2]} 6... Be7
{[%clk 0:02:47.5]} 7. Nf3 {[%clk 0:02:59.4]} 7... O-O {[%clk 0:02:47.5]} 8. Bd3
{[%clk 0:02:59.5]} 8... h6 {[%clk 0:02:47.9]} 9. Bh4 {[%clk 0:02:59.4]} 9... c6
{[%clk 0:02:41.6]} 10. O-O {[%clk 0:02:59.1]} 10... Re8 {[%clk 0:02:37.4]} 11.
Qc2 {[%clk 0:02:59.2]} 11... b6 {[%clk 0:02:17.8]} 12. Rab1 {[%clk 0:02:56]}
12... a5 {[%clk 0:02:11.1]} 13. a3 {[%clk 0:02:45.1]} 13... Ba6 {[%clk
0:02:05.8]} 14. Bxa6 {[%clk 0:02:39.8]} 14... Rxa6 {[%clk 0:02:06.7]} 15. b4
{[%clk 0:02:40]} 15... axb4 {[%clk 0:02:01]} 16. axb4 {[%clk 0:02:40.9]} 16...
Ra8 {[%clk 0:01:49.4]} 17. b5 {[%clk 0:02:27.7]} 17... c5 {[%clk 0:01:39.3]} 18.
dxc5 {[%clk 0:02:26.6]} 18... Bxc5 {[%clk 0:01:37.5]} 19. Nxd5 {[%clk 0:02:22]}
19... Qb8 {[%clk 0:01:21.6]} 20. Nxf6+ {[%clk 0:02:20.7]} 20... Nxf6 {[%clk
0:01:20.5]} 21. Bxf6 {[%clk 0:02:20.6]} 21... gxf6 {[%clk 0:01:20.3]} 22. Qf5
{[%clk 0:02:17.6]} 22... Qd6 {[%clk 0:01:04.5]} 23. Qg4+ {[%clk 0:02:16.4]}
23... Kh8 {[%clk 0:01:01.7]} 24. Qh5 {[%clk 0:02:11.9]} 24... Kg7 {[%clk
0:00:58.1]} 25. Nh4 {[%clk 0:02:11.7]} 25... Qf8 {[%clk 0:00:43.5]} 26. Rfd1
{[%clk 0:01:57.6]} 26... Rad8 {[%clk 0:00:40.8]} 27. g3 {[%clk 0:01:54.6]} 27...
Re5 {[%clk 0:00:39.5]} 28. Nf5+ {[%clk 0:01:53.6]} 28... Kh7 {[%clk 0:00:39.1]}
29. Rxd8 {[%clk 0:01:53.1]} 29... Rxf5 {[%clk 0:00:23.2]} 30. Qxf5+ {[%clk
0:01:51.5]} 30... Kg7 {[%clk 0:00:23.6]} 31. Rxf8 {[%clk 0:01:51.3]} 31... Kxf8
{[%clk 0:00:24.5]} 32. Qxf6 {[%clk 0:01:51]} 32... Be7 {[%clk 0:00:24.3]} 33.
Qh8# {[%clk 0:01:50.9]} 1-0

[Event "Early-Titled-Tuesday-Blitz-January-16-2024"]
[Site "Chess.com"]
[Date "2024.01.16"]
[Round "3"]
[White "toninhojit"]
[Black "RodokininEV"]
[Result "0-1"]
[WhiteElo "2424"]
[BlackElo "2616"]
[TimeControl "180+1"]
[EndTime "8:26:59 PST"]
[Termination "RodokininEV won by resignation"]

1. d4 {[%clk 0:03:00.9]} 1... Nf6 {[%clk 0:02:57.3]} 2. c4 {[%clk 0:03:01.1]}
2... e6 {[%clk 0:02:56.1]} 3. Nf3 {[%clk 0:03:01.4]} 3... b6 {[%clk 0:02:54.7]}
4. g3 {[%clk 0:03:01.3]} 4... Ba6 {[%clk 0:02:54.8]} 5. b3 {[%clk 0:03:01.3]}
5... Bb4+ {[%clk 0:02:52.4]} 6. Bd2 {[%clk 0:03:00.7]} 6... Be7 {[%clk
0:02:52.4]} 7. Bg2 {[%clk 0:03:01.1]} 7... O-O {[%clk 0:02:49.3]} 8. O-O {[%clk
0:03:01]} 8... c5 {[%clk 0:02:46.3]} 9. d5 {[%clk 0:02:59.7]} 9... exd5 {[%clk
0:02:44.3]} 10. Nh4 {[%clk 0:02:55.8]} 10... d6 {[%clk 0:02:39.9]} 11. Nc3
{[%clk 0:02:44.7]} 11... Nc6 {[%clk 0:02:37.7]} 12. Nf5 {[%clk 0:02:42.1]} 12...
Re8 {[%clk 0:02:32.6]} 13. Nxe7+ {[%clk 0:02:40.5]} 13... Nxe7 {[%clk
0:02:31.1]} 14. Bg5 {[%clk 0:02:40.2]} 14... Ne4 {[%clk 0:02:24.1]} 15. Bxe7
{[%clk 0:02:34.1]} 15... Nxc3 {[%clk 0:02:05.9]} 16. Bxd8 {[%clk 0:02:33.5]}
16... Nxd1 {[%clk 0:02:05.5]} 17. Raxd1 {[%clk 0:02:11.9]} 17... Raxd8 {[%clk
0:02:02.1]} 18. Rxd5 {[%clk 0:02:02.1]} 18... Rxe2 {[%clk 0:02:01.5]} 19. Rfd1
{[%clk 0:02:02.8]} 19... Rxa2 {[%clk 0:01:56.2]} 20. h4 {[%clk 0:01:54]} 20...
Kf8 {[%clk 0:01:53]} 21. Rxd6 {[%clk 0:01:53.5]} 21... Rxd6 {[%clk 0:01:51.1]}
22. Rxd6 {[%clk 0:01:54.4]} 22... Ke7 {[%clk 0:01:51.8]} 23. Rd5 {[%clk
0:01:44]} 23... Bc8 {[%clk 0:01:51]} 24. Rd3 {[%clk 0:01:40.2]} 24... Be6 {[%clk
0:01:50.9]} 25. Re3 {[%clk 0:01:37.8]} 25... h5 {[%clk 0:01:47.9]} 26. Bd5
{[%clk 0:01:36]} 26... Rb2 {[%clk 0:01:44.6]} 27. Kg2 {[%clk 0:01:35]} 27... a6
{[%clk 0:01:41.4]} 28. Kf3 {[%clk 0:01:35]} 28... b5 {[%clk 0:01:38]} 29. Bxe6
{[%clk 0:01:35]} 29... fxe6 {[%clk 0:01:37.9]} 30. cxb5 {[%clk 0:01:34.8]} 30...
axb5 {[%clk 0:01:37.6]} 31. Rc3 {[%clk 0:01:33.8]} 31... Kd6 {[%clk 0:01:33.6]}
32. Rd3+ {[%clk 0:01:34.4]} 32... Kc6 {[%clk 0:01:33.2]} 33. Re3 {[%clk
0:01:32.1]} 33... Kd5 {[%clk 0:01:31.7]} 34. Rd3+ {[%clk 0:01:29.9]} 34... Ke5
{[%clk 0:01:32]} 35. Re3+ {[%clk 0:01:29]} 35... Kd4 {[%clk 0:01:32.4]} 36. Re4+
{[%clk 0:01:11.7]} 36... Kc3 {[%clk 0:01:32.2]} 37. Re5 {[%clk 0:01:11.8]} 37...
Kb4 {[%clk 0:01:25.3]} 38. Re4+ {[%clk 0:01:06.1]} 38... Kxb3 {[%clk 0:01:23.1]}
39. Rxe6 {[%clk 0:01:05.7]} 39... c4 {[%clk 0:01:23.4]} 0-1

[Event "Early-Titled-Tuesday-Blitz-January-16-2024"]
[Site "Chess.com"]
[Date "2024.01.16"]
[Round "3"]
[White "margarita_2703"]
[Black "noblerone"]
[Result "0-1"]
[WhiteElo "2293"]
[BlackElo "2514"]
[TimeControl "180+1"]
[EndTime "8:26:59 PST"]
[Termination "noblerone won by resignation"]

1. e4 {[%clk 0:02:58.9]} 1... c5 {[%clk 0:02:54.6]} 2. Nf3 {[%clk 0:02:56.6]}
2... e6 {[%clk 0:02:55.2]} 3. c3 {[%clk 0:02:55.8]} 3... Nf6 {[%clk 0:02:53.3]}
4. e5 {[%clk 0:02:52.4]} 4... Nd5 {[%clk 0:02:53.1]} 5. d4 {[%clk 0:02:53.3]}
5... cxd4 {[%clk 0:02:49.6]} 6. Qxd4 {[%clk 0:02:46.6]} 6... Nc6 {[%clk
0:02:45.8]} 7. Qe4 {[%clk 0:02:32.6]} 7... f5 {[%clk 0:02:44.4]} 8. Qe2 {[%clk
0:02:30.2]} 8... b5 {[%clk 0:02:43.5]} 9. g3 {[%clk 0:02:25.4]} 9... a5 {[%clk
0:02:35]} 10. Bg2 {[%clk 0:02:15.5]} 10... Ba6 {[%clk 0:02:35.1]} 11. O-O {[%clk
0:02:14.4]} 11... Be7 {[%clk 0:02:26]} 12. Rd1 {[%clk 0:02:12.9]} 12... O-O
{[%clk 0:02:21.5]} 13. h4 {[%clk 0:01:43.8]} 13... f4 {[%clk 0:01:58.2]} 14.
Nbd2 {[%clk 0:01:38.2]} 14... fxg3 {[%clk 0:01:56]} 15. fxg3 {[%clk 0:01:39.1]}
15... Qb6+ {[%clk 0:01:56.2]} 16. Kh2 {[%clk 0:01:38.7]} 16... h6 {[%clk
0:01:40.7]} 17. Ne4 {[%clk 0:01:38.8]} 17... Rf7 {[%clk 0:01:38.6]} 18. b3
{[%clk 0:01:35]} 18... Raf8 {[%clk 0:01:37.6]} 19. Bb2 {[%clk 0:01:32.8]} 19...
Qe3 {[%clk 0:01:31.4]} 20. Qxe3 {[%clk 0:01:12.6]} 20... Nxe3 {[%clk 0:01:32.3]}
21. Nfd2 {[%clk 0:01:02.9]} 21... Nxd1 {[%clk 0:01:29.1]} 22. Rxd1 {[%clk
0:01:03.8]} 22... Nxe5 {[%clk 0:01:27.3]} 23. Rf1 {[%clk 0:01:01.3]} 23... Ng4+
{[%clk 0:01:23.1]} 24. Kg1 {[%clk 0:00:58.2]} 24... Ne3 {[%clk 0:01:18.5]} 25.
Rxf7 {[%clk 0:00:57.5]} 25... Rxf7 {[%clk 0:01:19.4]} 26. Bc1 {[%clk 0:00:55.9]}
26... Nxg2 {[%clk 0:01:18.6]} 27. Kxg2 {[%clk 0:00:56]} 27... Bb7 {[%clk
0:01:18.7]} 28. Kg1 {[%clk 0:00:56.2]} 28... d5 {[%clk 0:01:18.2]} 29. Nf2
{[%clk 0:00:54]} 29... Bc5 {[%clk 0:01:18.7]} 0-1

[Event "Early-Titled-Tuesday-Blitz-January-16-2024"]
[Site "Chess.com"]
[Date "2024.01.16"]
[Round "3"]
[White "Onischuk_V"]
[Black "Logman74"]
[Result "1-0"]
[WhiteElo "2795"]
[BlackElo "2502"]
[TimeControl "180+1"]
[EndTime "8:27:01 PST"]
[Termination "Onischuk_V won by resignation"]

1. e4 {[%clk 0:02:58.9]} 1... c5 {[%clk 0:02:59.1]} 2. Nf3 {[%clk 0:02:59.1]}
2... d6 {[%clk 0:02:59.3]} 3. d4 {[%clk 0:02:58.5]} 3... cxd4 {[%clk 0:02:59.9]}
4. Nxd4 {[%clk 0:02:59.2]} 4... Nf6 {[%clk 0:03:00.2]} 5. Nc3 {[%clk 0:02:59.9]}
5... a6 {[%clk 0:03:00.4]} 6. a4 {[%clk 0:02:58.7]} 6... e6 {[%clk 0:02:59.2]}
7. g4 {[%clk 0:02:53.6]} 7... Be7 {[%clk 0:02:59.2]} 8. Bg2 {[%clk 0:02:52.2]}
8... Qc7 {[%clk 0:02:59.4]} 9. g5 {[%clk 0:02:48]} 9... Nfd7 {[%clk 0:02:58.6]}
10. f4 {[%clk 0:02:48.8]} 10... Nc6 {[%clk 0:02:58]} 11. Nde2 {[%clk 0:02:41.9]}
11... h6 {[%clk 0:02:42.5]} 12. h4 {[%clk 0:02:41]} 12... hxg5 {[%clk
0:02:41.7]} 13. hxg5 {[%clk 0:02:40.9]} 13... Rxh1+ {[%clk 0:02:42.2]} 14. Bxh1
{[%clk 0:02:41]} 14... Nc5 {[%clk 0:02:41.5]} 15. Be3 {[%clk 0:02:36.9]} 15...
Bd7 {[%clk 0:02:41.3]} 16. Qd2 {[%clk 0:02:25.5]} 16... Nb4 {[%clk 0:02:37.3]}
17. Bg2 {[%clk 0:02:17.6]} 17... Rc8 {[%clk 0:02:10.1]} 18. Kf2 {[%clk 0:02:16]}
18... Bc6 {[%clk 0:01:44.4]} 19. Rh1 {[%clk 0:02:10.7]} 19... Bf8 {[%clk
0:01:38.7]} 20. Nd4 {[%clk 0:02:07.1]} 20... e5 {[%clk 0:01:29.8]} 21. Nxc6
{[%clk 0:01:48.2]} 21... Qxc6 {[%clk 0:01:24.4]} 22. Rh8 {[%clk 0:01:43.1]}
22... exf4 {[%clk 0:01:10.1]} 23. Bxf4 {[%clk 0:01:42.5]} 23... Nxa4 {[%clk
0:01:05.9]} 24. Bxd6 {[%clk 0:01:17.2]} 24... Nxc3 {[%clk 0:00:50.7]} 25. Rxf8+
{[%clk 0:01:15.5]} 25... Kd7 {[%clk 0:00:51.3]} 26. Bh3+ {[%clk 0:01:15.8]} 1-0

[Event "Early-Titled-Tuesday-Blitz-January-16-2024"]
[Site "Chess.com"]
[Date "2024.01.16"]
[Round "3"]
[White "kai_nov"]
[Black "MatthewG-p4p"]
[Result "0-1"]
[WhiteElo "2330"]
[BlackElo "2912"]
[TimeControl "180+1"]
[EndTime "8:27:08 PST"]
[Termination "MatthewG-p4p won by resignation"]

1. d4 {[%clk 0:02:59.1]} 1... Nf6 {[%clk 0:03:00.1]} 2. c4 {[%clk 0:02:57.3]}
2... c5 {[%clk 0:03:00.5]} 3. d5 {[%clk 0:02:56.9]} 3... e6 {[%clk 0:03:00.9]}
4. Nc3 {[%clk 0:02:54.2]} 4... exd5 {[%clk 0:03:01.7]} 5. cxd5 {[%clk
0:02:52.7]} 5... d6 {[%clk 0:03:02.6]} 6. e4 {[%clk 0:02:49.8]} 6... g6 {[%clk
0:03:03.5]} 7. Nf3 {[%clk 0:02:49.2]} 7... a6 {[%clk 0:03:03.8]} 8. a4 {[%clk
0:02:44.8]} 8... Bg4 {[%clk 0:03:03.6]} 9. Bd3 {[%clk 0:02:41.8]} 9... Bg7
{[%clk 0:03:03.4]} 10. h3 {[%clk 0:02:33.6]} 10... Bxf3 {[%clk 0:03:03.6]} 11.
Qxf3 {[%clk 0:02:32.6]} 11... O-O {[%clk 0:03:04.5]} 12. O-O {[%clk 0:02:29]}
12... Nbd7 {[%clk 0:03:03.5]} 13. a5 {[%clk 0:02:26.8]} 13... Re8 {[%clk
0:03:03.3]} 14. Bf4 {[%clk 0:02:25.2]} 14... Ne5 {[%clk 0:03:03.3]} 15. Bxe5
{[%clk 0:02:23.6]} 15... Rxe5 {[%clk 0:03:04.2]} 16. Qg3 {[%clk 0:02:10.5]}
16... Nh5 {[%clk 0:02:59.5]} 17. Qe3 {[%clk 0:02:04]} 17... b5 {[%clk
0:02:58.2]} 18. axb6 {[%clk 0:01:52.2]} 18... Qxb6 {[%clk 0:02:57.9]} 19. Na4
{[%clk 0:01:39.1]} 19... Qb4 {[%clk 0:02:56.4]} 20. Qe1 {[%clk 0:01:27.2]} 20...
Qd4 {[%clk 0:02:45.8]} 21. Qc3 {[%clk 0:01:22.3]} 21... Nf4 {[%clk 0:02:28.1]}
22. Nb6 {[%clk 0:00:49.6]} 22... Rd8 {[%clk 0:02:01.5]} 23. Qxd4 {[%clk
0:00:33.2]} 23... cxd4 {[%clk 0:02:02.4]} 24. Bxa6 {[%clk 0:00:31.6]} 24... Rxe4
{[%clk 0:01:58.2]} 25. b4 {[%clk 0:00:27.9]} 25... d3 {[%clk 0:01:56.9]} 26. g3
{[%clk 0:00:19.9]} 26... Bxa1 {[%clk 0:01:50.4]} 27. Rxa1 {[%clk 0:00:17.3]}
27... d2 {[%clk 0:01:50.1]} 28. Bf1 {[%clk 0:00:09.8]} 28... Re1 {[%clk
0:01:48.3]} 0-1